[Event "European Online Club-ch-I 2021"]
[Site "Online"]
[Date "2021.03.27"]
[Round "6.3"]
[White "Van Hoolandt, Patrick"]
[Black "Sprenar, Petr"]
[Result "0-1"]
[ECO "D38"]
[WhiteElo "2017"]
[BlackElo "2259"]
[Annotator "NA"]
[PlyCount "66"]
[EventDate "2021.03.27"]
[EventType "team-tourn"]
[EventCountry "NET"]
[SourceTitle "playchess.com"]
[Source "ChessBase"]
[SourceQuality "1"]
[TimeControl "900+5"]

1. d4 {[%emt 0:00:00]} d5 {[%emt 0:00:09]} 2. c4 {[%emt 0:00:03]} e6 {[%emt 0:00:02]} 3. Nf3 {[%emt 0:00:02]} Nf6 {[%emt 0:00:01]} 4. Nc3 {[%emt 0:00:02]} Bb4 {[%emt 0:00:02]} 5. cxd5 {[%emt 0:00:03]} exd5 {[%emt 0:00:03]} 6. Bg5 {[%emt 0:00:02]} h6 {[%emt 0:00:03]} 7. Bh4 {[%emt 0:00:02]} g5 {[%emt 0:00:19]} 8. Bg3 {[%emt 0:00:01]} Ne4 {[%emt 0:00:01]} 9. Nd2 {[%emt 0:00:02]} Nxg3 {[%emt 0:00:43]} 10. hxg3 {[%emt 0:00:03]} c6 {[%emt 0:00:25]} 11. Qc2 {[%emt 0:00:50]} Be6 {[%emt 0:00:37]} 12. e3 {[%emt 0:00:20]} Nd7 {[%emt 0:00:02]} 13. Bd3 {[%emt 0:00:06]} Qe7 {[%emt 0:01:38]} 14. O-O-O {[%emt 0:00:16]} O-O-O {[%emt 0:00:07]} 15. Kb1 {[%emt 0:00:03]} Kb8 {[%emt 0:00:04]} 16. Rc1 {[%emt 0:02:39]} h5 {[%emt 0:00:46]} 17. a3 {[%emt 0:01:01]} Bd6 {[%emt 0:00:02]} 18. Nb3 {[%emt 0:00:13]} h4 {[%emt 0:01:13]} 19. gxh4 {[%emt 0:00:04]} Rxh4 {[%emt 0:00:37]} 20. g3 {[%emt 0:00:15]} Rxh1 {[%emt 0:01:45]} 21. Rxh1 {[%emt 0:00:00]} Qf6 {[%emt 0:00:07]} 22. f4 {[%emt 0:01:38]} Bg4 {[%emt 0:00:10]} 23. Nd2 {[%emt 0:00:58]} Re8 {[%emt 0:00:25]} 24. Nf1 {[%emt 0:00:20]} Nb6 {[%emt 0:01:33]} 25. Ka2 {[%emt 0:02:59]} a6 {[%emt 0:01:12]} 26. b3 {[%emt 0:00:20]} c5 {[%emt 0:00:43]} 27. dxc5 {[%emt 0:00:35]} Bxc5 {[%emt 0:00:15]} 28. fxg5 {[%emt 0:00:44]} Qxg5 {[%emt 0:00:23]} 29. e4 {[%emt 0:00:02]} Bd4 {[%emt 0:01:41]} 30. Nxd5 {[%emt 0:01:15]} Nxd5 {[%emt 0:00:05]} 31. exd5 {[%emt 0:00:01]} Re1 {[%emt 0:00:15]} 32. b4 {[%emt 0:01:29]} Ra1+ {[%emt 0:00:04]} 33. Kb3 {[%emt 0:00:03]} Bd1 {[%emt 0:00:01]} 0-1

[Event "European Online Club-ch-I 2021"]
[Site "Online"]
[Date "2021.03.27"]
[Round "6.4"]
[White "Eret, Matous"]
[Black "Rapaire, Jean-Michel"]
[Result "1-0"]
[ECO "C45"]
[WhiteElo "2255"]
[BlackElo "1739"]
[Annotator "NA"]
[PlyCount "63"]
[EventDate "2021.03.27"]
[EventType "team-tourn"]
[EventCountry "NET"]
[SourceTitle "playchess.com"]
[Source "ChessBase"]
[SourceQuality "1"]
[TimeControl "900+5"]

1. e4 {[%emt 0:00:00]} d6 {[%emt 0:00:11]} 2. d4 {[%emt 0:00:03]} e5 {[%emt 0:00:02]} 3. Nf3 {[%emt 0:00:07]} exd4 {[%emt 0:00:03]} 4. Nxd4 {[%emt 0:00:04]} Nc6 {[%emt 0:00:08]} 5. Nxc6 {[%emt 0:00:28]} bxc6 {[%emt 0:00:03]} 6. Bd3 {[%emt 0:00:03]} Nf6 {[%emt 0:00:07]} 7. O-O {[%emt 0:00:05]} Be7 {[%emt 0:00:01]} 8. f4 {[%emt 0:00:12]} O-O {[%emt 0:01:59]} 9. h3 {[%emt 0:00:13]} a5 {[%emt 0:00:18]} 10. Qe2 {[%emt 0:01:09]} Nd7 {[%emt 0:00:22]} 11. Be3 {[%emt 0:00:25]} Bf6 {[%emt 0:00:17]} 12. c3 {[%emt 0:00:11]} Re8 {[%emt 0:00:41]} 13. Nd2 {[%emt 0:00:11]} g6 {[%emt 0:02:31]} 14. a4 {[%emt 0:01:16]} Nb6 {[%emt 0:00:10]} 15. Nf3 {[%emt 0:00:46]} c5 {[%emt 0:00:25]} 16. e5 {[%emt 0:01:06]} Bg7 {[%emt 0:00:17]} 17. Bb5 {[%emt 0:01:44]} Bd7 {[%emt 0:00:12]} 18. Rad1 {[%emt 0:00:10]} Bxb5 {[%emt 0:00:10]} 19. axb5 {[%emt 0:00:08]} Qe7 {[%emt 0:00:10]} 20. Qf2 {[%emt 0:01:02]} Nc4 {[%emt 0:01:28]} 21. Bc1 {[%emt 0:00:04]} Rab8 {[%emt 0:02:19]} 22. Rfe1 {[%emt 0:02:29]} Qd7 {[%emt 0:01:50]} 23. Ng5 {[%emt 0:00:33]} Qxb5 {[%emt 0:00:29]} 24. Qh4 {[%emt 0:00:14]} h6 {[%emt 0:00:18]} 25. Ne4 {[%emt 0:00:27]} dxe5 {[%emt 0:00:32]} 26. fxe5 {[%emt 0:00:10]} Rxe5 {[%emt 0:01:04]} 27. Bxh6 {[%emt 0:02:07]} Rbe8 {[%emt 0:00:22]} 28. Nf6+ {[%emt 0:00:28]} Bxf6 {[%emt 0:00:06]} 29. Qxf6 {[%emt 0:00:01]} Rxe1+ {[%emt 0:00:10]} 30. Rxe1 {[%emt 0:00:01]} Rxe1+ {[%emt 0:00:02]} 31. Kh2 {[%emt 0:00:01]} Rh1+ {[%emt 0:00:28]} 32. Kxh1 {[%emt 0:00:03]} 1-0

[Event "European Online Club-ch-I 2021"]
[Site "Online"]
[Date "2021.03.27"]
[Round "6.5"]
[White "Stephan, Victor"]
[Black "Skytte, Rasmus"]
[Result "1-0"]
[ECO "A57"]
[WhiteElo "2430"]
[BlackElo "2381"]
[Annotator "NA"]
[PlyCount "93"]
[EventDate "2021.03.27"]
[EventType "team-tourn"]
[EventCountry "NET"]
[SourceTitle "playchess.com"]
[Source "ChessBase"]
[SourceQuality "1"]
[TimeControl "900+5"]

1. d4 {[%emt 0:00:00]} Nf6 {[%emt 0:00:05]} 2. c4 {[%emt 0:00:06]} c5 {[%emt 0:00:02]} 3. d5 {[%emt 0:00:01]} b5 {[%emt 0:00:02]} 4. a4 {[%emt 0:00:03]} Qa5+ {[%emt 0:00:03]} 5. Bd2 {[%emt 0:00:06]} b4 {[%emt 0:00:01]} 6. Qc2 {[%emt 0:00:02]} g6 {[%emt 0:00:03]} 7. e4 {[%emt 0:00:02]} d6 {[%emt 0:00:03]} 8. f4 {[%emt 0:00:02]} Bg7 {[%emt 0:00:02]} 9. Nf3 {[%emt 0:00:02]} Nxe4 {[%emt 0:00:43]} 10. Qxe4 {[%emt 0:00:18]} Bf5 {[%emt 0:00:02]} 11. Qe3 {[%emt 0:00:48]} Bxb2 {[%emt 0:00:04]} 12. Ra2 {[%emt 0:00:02]} Bg7 {[%emt 0:03:33]} 13. Bd3 {[%emt 0:00:55]} Bxd3 {[%emt 0:00:15]} 14. Qxd3 {[%emt 0:00:05]} O-O {[%emt 0:00:08]} 15. O-O {[%emt 0:00:10]} Nd7 {[%emt 0:00:02]} 16. Bc1 {[%emt 0:00:42]} b3 {[%emt 0:00:48]} 17. Qxb3 {[%emt 0:00:19]} Rab8 {[%emt 0:00:03]} 18. Qc2 {[%emt 0:00:02]} Qb4 {[%emt 0:00:32]} 19. Ba3 {[%emt 0:00:23]} Qb3 {[%emt 0:00:12]} 20. Qxb3 {[%emt 0:00:35]} Rxb3 {[%emt 0:00:03]} 21. Nbd2 {[%emt 0:00:01]} Rd3 {[%emt 0:00:12]} 22. Bb2 {[%emt 0:01:45]} Bh6 {[%emt 0:00:16]} 23. g3 {[%emt 0:00:20]} Rb8 {[%emt 0:00:02]} 24. Kf2 {[%emt 0:00:11]} Bg7 {[%emt 0:00:34]} 25. Bxg7 {[%emt 0:00:18]} Kxg7 {[%emt 0:00:01]} 26. Rc1 {[%emt 0:00:23]} f5 {[%emt 0:04:47]} 27. Ke2 {[%emt 0:00:12]} Rd4 {[%emt 0:00:01]} 28. Nxd4 {[%emt 0:00:05]} cxd4 {[%emt 0:00:03]} 29. Rb1 {[%emt 0:00:20]} Rc8 {[%emt 0:00:02]} 30. Rb7 {[%emt 0:00:15]} Nc5 {[%emt 0:00:01]} 31. Rxe7+ {[%emt 0:00:02]} Kf6 {[%emt 0:00:02]} 32. Re6+ {[%emt 0:00:20]} Nxe6 {[%emt 0:00:05]} 33. dxe6 {[%emt 0:00:01]} Kxe6 {[%emt 0:00:12]} 34. Rb2 {[%emt 0:00:04]} d5 {[%emt 0:00:02]} 35. Kd3 {[%emt 0:00:14]} dxc4+ {[%emt 0:00:10]} 36. Nxc4 {[%emt 0:00:02]} Kd5 {[%emt 0:00:16]} 37. Rb5+ {[%emt 0:00:03]} Kc6 {[%emt 0:00:04]} 38. Kxd4 {[%emt 0:00:27]} Rd8+ {[%emt 0:00:12]} 39. Ke5 {[%emt 0:00:05]} Rd1 {[%emt 0:00:06]} 40. Kf6 {[%emt 0:00:06]} Ra1 {[%emt 0:00:07]} 41. Ne5+ {[%emt 0:00:03]} Kd6 {[%emt 0:00:05]} 42. Ra5 {[%emt 0:00:04]} Ra2 {[%emt 0:00:10]} 43. h4 {[%emt 0:00:15]} Rg2 {[%emt 0:00:08]} 44. Rxa7 {[%emt 0:00:02]} Rxg3 {[%emt 0:00:03]} 45. Rd7+ {[%emt 0:00:02]} Kc5 {[%emt 0:00:03]} 46. Rxh7 {[%emt 0:00:02]} Ra3 {[%emt 0:00:05]} 47. Kxg6 {[%emt 0:00:04]} 1-0

[Event "European Online Club-ch-I 2021"]
[Site "Online"]
[Date "2021.03.27"]
[Round "6.6"]
[White "Sorensen, Jan"]
[Black "Bilquez, Romain"]
[Result "0-1"]
[ECO "C06"]
[WhiteElo "2369"]
[BlackElo "2276"]
[Annotator "NA"]
[PlyCount "82"]
[EventDate "2021.03.27"]
[EventType "team-tourn"]
[EventCountry "NET"]
[SourceTitle "playchess.com"]
[Source "ChessBase"]
[SourceQuality "1"]
[TimeControl "900+5"]

1. e4 {[%emt 0:00:00]} e6 {[%emt 0:00:02]} 2. d4 {[%emt 0:00:03]} d5 {[%emt 0:00:07]} 3. Nd2 {[%emt 0:00:02]} Nf6 {[%emt 0:00:02]} 4. e5 {[%emt 0:00:02]} Nfd7 {[%emt 0:00:00]} 5. Bd3 {[%emt 0:00:02]} c5 {[%emt 0:00:01]} 6. c3 {[%emt 0:00:01]} Nc6 {[%emt 0:00:00]} 7. Ngf3 {[%emt 0:00:03]} f6 {[%emt 0:00:01]} 8. exf6 {[%emt 0:00:04]} Nxf6 {[%emt 0:00:00]} 9. O-O {[%emt 0:00:04]} Bd6 {[%emt 0:00:01]} 10. dxc5 {[%emt 0:00:41]} Bxc5 {[%emt 0:00:02]} 11. c4 {[%emt 0:00:11]} O-O {[%emt 0:00:09]} 12. Nb3 {[%emt 0:00:03]} Bb6 {[%emt 0:00:45]} 13. Bg5 {[%emt 0:00:14]} Qe8 {[%emt 0:00:07]} 14. Bh4 {[%emt 0:00:34]} Qh5 {[%emt 0:00:14]} 15. Bg3 {[%emt 0:00:12]} Bd7 {[%emt 0:01:19]} 16. c5 {[%emt 0:00:32]} Bd8 {[%emt 0:00:04]} 17. Re1 {[%emt 0:00:08]} Re8 {[%emt 0:00:38]} 18. Rc1 {[%emt 0:00:46]} a5 {[%emt 0:00:18]} 19. a4 {[%emt 0:03:26]} e5 {[%emt 0:01:29]} 20. Be2 {[%emt 0:00:56]} Qf7 {[%emt 0:03:06]} 21. Bb5 {[%emt 0:00:21]} Ne4 {[%emt 0:01:24]} 22. Nbd2 {[%emt 0:04:19]} Nxg3 {[%emt 0:00:10]} 23. hxg3 {[%emt 0:00:02]} e4 {[%emt 0:01:02]} 24. Bxc6 {[%emt 0:00:12]} bxc6 {[%emt 0:00:01]} 25. Nd4 {[%emt 0:00:06]} Rb8 {[%emt 0:00:21]} 26. N2b3 {[%emt 0:00:04]} Rf8 {[%emt 0:00:06]} 27. Qd2 {[%emt 0:00:10]} Rb4 {[%emt 0:00:12]} 28. Ra1 {[%emt 0:00:05]} Bf6 {[%emt 0:00:16]} 29. Qe3 {[%emt 0:00:17]} Rfb8 {[%emt 0:00:19]} 30. Ra3 {[%emt 0:00:23]} Bxd4 {[%emt 0:02:44]} 31. Nxd4 {[%emt 0:00:03]} Rxb2 {[%emt 0:00:01]} 32. Nb3 {[%emt 0:00:27]} Ra8 {[%emt 0:00:21]} 33. Rf1 {[%emt 0:00:32]} Qf6 {[%emt 0:00:11]} 34. Raa1 {[%emt 0:00:43]} Bc8 {[%emt 0:00:45]} 35. Rfd1 {[%emt 0:00:40]} Ba6 {[%emt 0:00:11]} 36. Nxa5 {[%emt 0:00:08]} Bd3 {[%emt 0:00:32]} 37. Ra3 {[%emt 0:01:12]} Re2 {[%emt 0:00:04]} 38. Qf4 {[%emt 0:00:13]} Qxf4 {[%emt 0:00:05]} 39. gxf4 {[%emt 0:00:01]} Rxa5 {[%emt 0:00:01]} 40. g3 {[%emt 0:00:05]} Rc2 {[%emt 0:00:02]} 41. Rb1 {[%emt 0:00:02]} Ra8 {[%emt 0:00:38]} 0-1

[Event "European Online Club-ch-I 2021"]
[Site "Online"]
[Date "2021.03.27"]
[Round "6.7"]
[White "Martsynovskaya, Marina"]
[Black "Boe, Mads"]
[Result "0-1"]
[ECO "B18"]
[WhiteElo "2046"]
[BlackElo "2250"]
[Annotator "NA"]
[PlyCount "100"]
[EventDate "2021.03.27"]
[EventType "team-tourn"]
[EventCountry "NET"]
[SourceTitle "playchess.com"]
[Source "ChessBase"]
[SourceQuality "1"]
[TimeControl "900+5"]

1. e4 {[%emt 0:00:43]} c6 {[%emt 0:00:06]} 2. d4 {[%emt 0:00:02]} d5 {[%emt 0:00:02]} 3. Nc3 {[%emt 0:00:03]} dxe4 {[%emt 0:00:01]} 4. Nxe4 {[%emt 0:00:02]} Bf5 {[%emt 0:00:03]} 5. Ng3 {[%emt 0:00:03]} Bg6 {[%emt 0:00:02]} 6. Nf3 {[%emt 0:00:01]} Nf6 {[%emt 0:00:02]} 7. Bd3 {[%emt 0:00:12]} e6 {[%emt 0:00:04]} 8. O-O {[%emt 0:00:03]} Nbd7 {[%emt 0:00:05]} 9. c4 {[%emt 0:00:06]} Be7 {[%emt 0:00:03]} 10. Re1 {[%emt 0:00:04]} O-O {[%emt 0:00:02]} 11. Bxg6 {[%emt 0:00:02]} hxg6 {[%emt 0:00:04]} 12. Bd2 {[%emt 0:00:14]} a5 {[%emt 0:00:07]} 13. Bc3 {[%emt 0:00:12]} a4 {[%emt 0:00:14]} 14. Qe2 {[%emt 0:00:18]} Qb6 {[%emt 0:01:30]} 15. Ng5 {[%emt 0:00:39]} Bb4 {[%emt 0:00:40]} 16. Rad1 {[%emt 0:00:56]} Qa5 {[%emt 0:01:14]} 17. Bxb4 {[%emt 0:00:32]} Qxb4 {[%emt 0:00:04]} 18. Qc2 {[%emt 0:00:43]} Nb6 {[%emt 0:00:58]} 19. b3 {[%emt 0:00:32]} axb3 {[%emt 0:00:10]} 20. axb3 {[%emt 0:00:02]} Nbd7 {[%emt 0:00:02]} 21. Ra1 {[%emt 0:00:14]} b5 {[%emt 0:00:29]} 22. N5e4 {[%emt 0:00:19]} Nb6 {[%emt 0:01:21]} 23. Nxf6+ {[%emt 0:03:14]} gxf6 {[%emt 0:00:05]} 24. Rac1 {[%emt 0:00:16]} f5 {[%emt 0:00:09]} 25. cxb5 {[%emt 0:00:42]} cxb5 {[%emt 0:00:08]} 26. Qc5 {[%emt 0:00:21]} Nd5 {[%emt 0:00:09]} 27. Qxb4 {[%emt 0:03:05]} Nxb4 {[%emt 0:00:04]} 28. Rc7 {[%emt 0:00:02]} Rfd8 {[%emt 0:00:13]} 29. Ne2 {[%emt 0:00:03]} Ra2 {[%emt 0:02:07]} 30. Kf1 {[%emt 0:00:04]} Rb2 {[%emt 0:00:02]} 31. Rb7 {[%emt 0:00:42]} Nd3 {[%emt 0:00:15]} 32. Ra1 {[%emt 0:01:10]} Rxb3 {[%emt 0:00:02]} 33. Nc1 {[%emt 0:00:02]} Nxc1 {[%emt 0:02:03]} 34. Rxc1 {[%emt 0:00:03]} f4 {[%emt 0:02:30]} 35. Rc5 {[%emt 0:00:55]} f3 {[%emt 0:00:12]} 36. gxf3 {[%emt 0:00:03]} Rxf3 {[%emt 0:00:05]} 37. Rcxb5 {[%emt 0:00:19]} Rxd4 {[%emt 0:00:04]} 38. Rb2 {[%emt 0:00:05]} g5 {[%emt 0:00:11]} 39. Kg2 {[%emt 0:00:20]} g4 {[%emt 0:00:10]} 40. R7b5 {[%emt 0:00:26]} Rdf4 {[%emt 0:01:05]} 41. Rg5+ {[%emt 0:00:10]} Kh7 {[%emt 0:00:01]} 42. Rxg4 {[%emt 0:00:10]} Rxg4+ {[%emt 0:00:14]} 43. Kxf3 {[%emt 0:00:02]} Rg1 {[%emt 0:00:02]} 44. Rb4 {[%emt 0:00:05]} f5 {[%emt 0:00:21]} 45. Rb6 {[%emt 0:00:11]} Re1 {[%emt 0:00:03]} 46. Kf4 {[%emt 0:00:01]} Kg6 {[%emt 0:00:01]} 47. f3 {[%emt 0:00:02]} Kf6 {[%emt 0:00:03]} 48. h4 {[%emt 0:00:03]} Rg1 {[%emt 0:00:10]} 49. Ra6 {[%emt 0:00:05]} Rb1 {[%emt 0:00:10]} 50. Rb6 {[%emt 0:00:05]} Rxb6 {[%emt 0:00:09]} 0-1

[Event "European Online Club-ch-I 2021"]
[Site "Online"]
[Date "2021.03.27"]
[Round "6.8"]
[White "Rendboe, John Filip"]
[Black "Devallee, Jeremie"]
[Result "0-1"]
[ECO "A58"]
[WhiteElo "2169"]
[BlackElo "2220"]
[Annotator "NA"]
[PlyCount "82"]
[EventDate "2021.03.27"]
[EventType "team-tourn"]
[EventCountry "NET"]
[SourceTitle "playchess.com"]
[Source "ChessBase"]
[SourceQuality "1"]
[TimeControl "900+5"]

1. d4 {[%emt 0:00:00]} Nf6 {[%emt 0:00:03]} 2. c4 {[%emt 0:00:05]} c5 {[%emt 0:00:02]} 3. d5 {[%emt 0:00:04]} b5 {[%emt 0:00:02]} 4. cxb5 {[%emt 0:00:03]} a6 {[%emt 0:00:01]} 5. bxa6 {[%emt 0:00:03]} g6 {[%emt 0:00:02]} 6. g3 {[%emt 0:00:06]} Bg7 {[%emt 0:00:03]} 7. Bg2 {[%emt 0:00:04]} d6 {[%emt 0:00:02]} 8. Nh3 {[%emt 0:00:10]} O-O {[%emt 0:00:07]} 9. O-O {[%emt 0:00:05]} Nxa6 {[%emt 0:00:03]} 10. Nf4 {[%emt 0:00:08]} Nb4 {[%emt 0:00:08]} 11. Nc3 {[%emt 0:00:03]} Nd7 {[%emt 0:00:18]} 12. h4 {[%emt 0:00:19]} Ne5 {[%emt 0:00:10]} 13. h5 {[%emt 0:00:17]} Bg4 {[%emt 0:02:17]} 14. hxg6 {[%emt 0:00:32]} hxg6 {[%emt 0:00:06]} 15. a3 {[%emt 0:00:59]} Na6 {[%emt 0:00:30]} 16. Nd3 {[%emt 0:00:38]} Nc4 {[%emt 0:01:56]} 17. Qc2 {[%emt 0:00:48]} Na5 {[%emt 0:00:26]} 18. Rb1 {[%emt 0:01:31]} c4 {[%emt 0:00:05]} 19. Nb4 {[%emt 0:01:00]} Nxb4 {[%emt 0:00:04]} 20. axb4 {[%emt 0:00:03]} Nb3 {[%emt 0:00:03]} 21. Bg5 {[%emt 0:00:15]} Qb6 {[%emt 0:00:57]} 22. Bxe7 {[%emt 0:00:15]} Rfe8 {[%emt 0:00:03]} 23. Bg5 {[%emt 0:00:10]} Nd4 {[%emt 0:00:17]} 24. Qd2 {[%emt 0:00:19]} Nxe2+ {[%emt 0:01:00]} 25. Nxe2 {[%emt 0:00:20]} Rxe2 {[%emt 0:00:08]} 26. Qf4 {[%emt 0:00:03]} Bf5 {[%emt 0:00:06]} 27. Ra1 {[%emt 0:01:11]} Rc8 {[%emt 0:01:49]} 28. g4 {[%emt 0:01:32]} Bd3 {[%emt 0:00:09]} 29. Bf6 {[%emt 0:00:07]} Rxb2 {[%emt 0:01:30]} 30. Bxb2 {[%emt 0:01:16]} Bxb2 {[%emt 0:00:05]} 31. Rfe1 {[%emt 0:00:48]} Bxa1 {[%emt 0:02:36]} 32. Rxa1 {[%emt 0:00:08]} c3 {[%emt 0:00:05]} 33. Bf1 {[%emt 0:00:54]} Bxf1 {[%emt 0:00:11]} 34. Kxf1 {[%emt 0:00:12]} c2 {[%emt 0:00:08]} 35. Kg1 {[%emt 0:00:14]} Qc7 {[%emt 0:00:15]} 36. Rc1 {[%emt 0:00:05]} Qc3 {[%emt 0:00:09]} 37. g5 {[%emt 0:00:37]} Rc4 {[%emt 0:00:12]} 38. Qf6 {[%emt 0:00:46]} Rg4+ {[%emt 0:00:50]} 39. Kh2 {[%emt 0:00:24]} Rh4+ {[%emt 0:00:03]} 40. Kg1 {[%emt 0:00:05]} Qh3 {[%emt 0:00:02]} 41. Qd8+ {[%emt 0:00:16]} Kh7 {[%emt 0:00:03]} 0-1

[Event "European Online Club-ch-I 2021"]
[Site "Online"]
[Date "2021.03.27"]
[Round "6.9"]
[White "Moranda, Wojciech"]
[Black "Arnaudov, G. Petar"]
[Result "1/2-1/2"]
[ECO "A13"]
[WhiteElo "2618"]
[BlackElo "2471"]
[Annotator "ChessBase"]
[PlyCount "122"]
[EventDate "2021.03.27"]
[EventType "team-tourn"]
[EventCountry "NET"]
[SourceTitle "playchess.com"]
[Source "ChessBase"]
[SourceQuality "1"]
[TimeControl "900+5"]

1. Nf3 {[%emt 0:00:00]} Nf6 {[%emt 0:00:11]} 2. c4 {[%emt 0:00:02]} e6 {[%emt 0:00:03]} 3. g3 {[%emt 0:00:02]} d5 {[%emt 0:00:02]} 4. Bg2 {[%emt 0:00:01]} d4 {[%emt 0:00:03]} 5. O-O {[%emt 0:00:02]} c5 {[%emt 0:00:01]} 6. b4 {[%emt 0:00:01]} cxb4 {[%emt 0:00:27]} 7. a3 {[%emt 0:00:03]} Nc6 {[%emt 0:00:02]} 8. axb4 {[%emt 0:00:04]} Bxb4 {[%emt 0:00:05]} 9. Ne5 {[%emt 0:00:03]} Nxe5 {[%emt 0:00:47]} 10. Qa4+ {[%emt 0:00:02]} Nc6 {[%emt 0:00:02]} 11. Bxc6+ {[%emt 0:00:02]} bxc6 {[%emt 0:00:00]} 12. Qxb4 {[%emt 0:00:02]} Nd7 {[%emt 0:00:10]} 13. d3 {[%emt 0:00:06]} c5 {[%emt 0:00:03]} 14. Qa5 {[%emt 0:00:02]} O-O {[%emt 0:00:10]} 15. Nd2 {[%emt 0:01:17]} Bb7 {[%emt 0:00:03]} 16. Qxd8 {[%emt 0:00:36]} Rfxd8 {[%emt 0:00:03]} 17. Ra5 {[%emt 0:00:05]} e5 {[%emt 0:01:02]} 18. Ba3 {[%emt 0:00:44]} Rdc8 {[%emt 0:00:12]} 19. Nb3 {[%emt 0:01:56]} e4 {[%emt 0:00:03]} 20. Bxc5 {[%emt 0:04:16]} exd3 {[%emt 0:00:08]} 21. exd3 {[%emt 0:00:02]} Bf3 {[%emt 0:00:15]} 22. Bxd4 {[%emt 0:01:11]} Be2 {[%emt 0:00:05]} 23. Rc1 {[%emt 0:00:02]} Bxd3 {[%emt 0:00:13]} 24. Nd2 {[%emt 0:00:06]} a6 {[%emt 0:00:33]} 25. Ra3 {[%emt 0:02:22]} Bf5 {[%emt 0:00:11]} 26. c5 {[%emt 0:00:01]} Nb8 {[%emt 0:00:09]} 27. Nc4 {[%emt 0:00:11]} Nc6 {[%emt 0:00:05]} 28. Be3 {[%emt 0:00:16]} Rd8 {[%emt 0:00:24]} 29. Nd6 {[%emt 0:00:05]} Bg4 {[%emt 0:00:47]} 30. Rb1 {[%emt 0:00:11]} Rab8 {[%emt 0:01:11]} 31. Rxb8 {[%emt 0:00:17]} Rxb8 {[%emt 0:00:02]} 32. Rxa6 {[%emt 0:00:06]} Bf3 {[%emt 0:00:02]} 33. Rb6 {[%emt 0:00:03]} Ra8 {[%emt 0:00:03]} 34. Rb1 {[%emt 0:00:01]} h5 {[%emt 0:00:06]} 35. h3 {[%emt 0:00:04]} Ne5 {[%emt 0:00:23]} 36. Bd4 {[%emt 0:00:07]} Nc6 {[%emt 0:00:05]} 37. Bc3 {[%emt 0:00:20]} Ra3 {[%emt 0:00:38]} 38. Rc1 {[%emt 0:00:01]} Rb3 {[%emt 0:00:03]} 39. Kh2 {[%emt 0:00:06]} f6 {[%emt 0:00:09]} 40. g4 {[%emt 0:00:09]} hxg4 {[%emt 0:00:09]} 41. hxg4 {[%emt 0:00:21]} Bxg4 {[%emt 0:00:15]} 42. Ne4 {[%emt 0:00:10]} Bf5 {[%emt 0:00:22]} 43. Nd2 {[%emt 0:00:05]} Rb5 {[%emt 0:00:05]} 44. Ba1 {[%emt 0:00:05]} Kf7 {[%emt 0:00:08]} 45. Nc4 {[%emt 0:00:09]} Rb1 {[%emt 0:00:15]} 46. Rxb1 {[%emt 0:00:14]} Bxb1 {[%emt 0:00:03]} 47. Kg3 {[%emt 0:00:08]} Ke6 {[%emt 0:00:05]} 48. Nd6 {[%emt 0:00:05]} Kd5 {[%emt 0:00:27]} 49. Ne8 {[%emt 0:00:03]} g6 {[%emt 0:00:07]} 50. Nxf6+ {[%emt 0:00:03]} Kxc5 {[%emt 0:00:02]} 51. Ng4 {[%emt 0:00:03]} Kd5 {[%emt 0:00:03]} 52. Ne3+ {[%emt 0:00:03]} Ke6 {[%emt 0:00:02]} 53. f4 {[%emt 0:00:03]} Ne7 {[%emt 0:00:03]} 54. Bb2 {[%emt 0:00:01]} Nf5+ {[%emt 0:00:01]} 55. Nxf5 {[%emt 0:00:01]} Kxf5 {[%emt 0:00:02]} 56. Ba1 {[%emt 0:00:01]} g5 {[%emt 0:00:02]} 57. fxg5 {[%emt 0:00:01]} Kxg5 {[%emt 0:00:01]} 58. Bb2 {[%emt 0:00:01]} Bf5 {[%emt 0:00:02]} 59. Ba1 {[%emt 0:00:01]} Bb1 {[%emt 0:00:02]} 60. Bb2 {[%emt 0:00:01]} Bf5 {[%emt 0:00:01]} 61. Ba1 {[%emt 0:00:01]} Bb1 {[%emt 0:00:01]} 1/2-1/2

[Event "European Online Club-ch-I 2021"]
[Site "Online"]
[Date "2021.03.27"]
[Round "6.10"]
[White "Godart, Francois"]
[Black "Tomczak, Jacek"]
[Result "0-1"]
[ECO "C06"]
[WhiteElo "2422"]
[BlackElo "2610"]
[Annotator "ChessBase"]
[PlyCount "66"]
[EventDate "2021.03.27"]
[EventType "team-tourn"]
[EventCountry "NET"]
[SourceTitle "playchess.com"]
[Source "ChessBase"]
[SourceQuality "1"]
[TimeControl "900+5"]

1. e4 {[%emt 0:00:00]} e6 {[%emt 0:00:12]} 2. d4 {[%emt 0:00:03]} d5 {[%emt 0:00:02]} 3. Nd2 {[%emt 0:00:01]} Be7 {[%emt 0:00:03]} 4. Ngf3 {[%emt 0:00:03]} Nf6 {[%emt 0:00:04]} 5. e5 {[%emt 0:00:02]} Nfd7 {[%emt 0:00:02]} 6. Bd3 {[%emt 0:00:01]} c5 {[%emt 0:00:01]} 7. c3 {[%emt 0:00:01]} Nc6 {[%emt 0:00:03]} 8. O-O {[%emt 0:00:02]} h5 {[%emt 0:00:13]} 9. Re1 {[%emt 0:00:31]} cxd4 {[%emt 0:00:05]} 10. cxd4 {[%emt 0:00:11]} g5 {[%emt 0:00:04]} 11. Nb3 {[%emt 0:00:05]} g4 {[%emt 0:00:02]} 12. Nfd2 {[%emt 0:00:03]} Nb4 {[%emt 0:00:07]} 13. Bb1 {[%emt 0:00:41]} a5 {[%emt 0:00:04]} 14. a3 {[%emt 0:00:10]} Nc6 {[%emt 0:00:02]} 15. a4 {[%emt 0:00:07]} b6 {[%emt 0:00:12]} 16. Nf1 {[%emt 0:00:25]} Ba6 {[%emt 0:00:12]} 17. Ne3 {[%emt 0:00:02]} Rc8 {[%emt 0:00:21]} 18. Bd3 {[%emt 0:00:07]} Ndb8 {[%emt 0:03:07]} 19. Bxa6 {[%emt 0:00:56]} Nxa6 {[%emt 0:00:02]} 20. Bd2 {[%emt 0:00:01]} Ncb4 {[%emt 0:00:28]} 21. Qe2 {[%emt 0:01:01]} Qd7 {[%emt 0:00:07]} 22. Rec1 {[%emt 0:00:50]} Rxc1+ {[%emt 0:00:19]} 23. Nxc1 {[%emt 0:00:02]} Kd8 {[%emt 0:00:43]} 24. Nd3 {[%emt 0:02:02]} Nc6 {[%emt 0:00:27]} 25. Nc2 {[%emt 0:01:06]} Kc7 {[%emt 0:00:24]} 26. Rb1 {[%emt 0:00:26]} Kb7 {[%emt 0:01:56]} 27. f3 {[%emt 0:01:06]} f5 {[%emt 0:01:24]} 28. exf6 {[%emt 0:00:18]} Bxf6 {[%emt 0:00:02]} 29. Bc3 {[%emt 0:00:09]} Qg7 {[%emt 0:00:32]} 30. fxg4 {[%emt 0:01:47]} hxg4 {[%emt 0:00:40]} 31. Ne5 {[%emt 0:00:43]} Bxe5 {[%emt 0:01:36]} 32. dxe5 {[%emt 0:00:02]} Nc5 {[%emt 0:00:02]} 33. Nd4 {[%emt 0:01:20]} Qh7 {[%emt 0:00:16]} 0-1

[Event "European Online Club-ch-I 2021"]
[Site "Online"]
[Date "2021.03.27"]
[Round "6.11"]
[White "Klekowski, Maciej"]
[Black "Marechal, Andy"]
[Result "1-0"]
[ECO "A25"]
[WhiteElo "2510"]
[BlackElo "2332"]
[Annotator "ChessBase"]
[PlyCount "33"]
[EventDate "2021.03.27"]
[EventType "team-tourn"]
[EventCountry "NET"]
[SourceTitle "playchess.com"]
[Source "ChessBase"]
[SourceQuality "1"]
[TimeControl "900+5"]

1. c4 {[%emt 0:00:00]} e5 {[%emt 0:00:04]} 2. Nc3 {[%emt 0:00:02]} Nc6 {[%emt 0:00:02]} 3. g3 {[%emt 0:00:02]} f5 {[%emt 0:00:01]} 4. Bg2 {[%emt 0:00:03]} Nf6 {[%emt 0:00:05]} 5. d3 {[%emt 0:00:05]} Bb4 {[%emt 0:00:11]} 6. Bd2 {[%emt 0:00:04]} O-O {[%emt 0:00:02]} 7. e3 {[%emt 0:00:13]} f4 {[%emt 0:01:22]} 8. Nf3 {[%emt 0:04:37]} fxe3 {[%emt 0:00:31]} 9. fxe3 {[%emt 0:00:02]} d6 {[%emt 0:02:39]} 10. O-O {[%emt 0:00:28]} e4 {[%emt 0:01:22]} 11. Nxe4 {[%emt 0:00:40]} Nxe4 {[%emt 0:00:05]} 12. Bxb4 {[%emt 0:00:12]} Nxg3 {[%emt 0:00:19]} 13. hxg3 {[%emt 0:00:04]} Nxb4 {[%emt 0:00:02]} 14. Nh4 {[%emt 0:01:04]} c6 {[%emt 0:04:31]} 15. Qh5 {[%emt 0:00:47]} Re8 {[%emt 0:03:46]} 16. Be4 {[%emt 0:00:05]} Rxe4 {[%emt 0:00:03]} 17. Qf7+ {[%emt 0:00:02]} 1-0